fUSD/lending_fUSD_20240217
["ID","MTS","AMOUNT","RATE_DAILY","PERIOD"]
[314328088,1708185048465,-500.0,0.00054794,120]
[314328089,1708185048474,-506.4659255,0.00054794,120]
[314328090,1708185048484,-500.0,0.00054794,120]
[314328091,1708185048494,-393.12415034,0.00054794,120]
[314328092,1708185048503,-500.0,0.00054794,120]
[314328093,1708185048513,-500.0,0.00054794,120]
[314328094,1708185048522,-500.0,0.00054794,120]
[314328095,1708185048532,-500.0,0.00054794,120]
[314328096,1708185048542,-523.94458061,0.00054794,120]
[314328097,1708185048552,-538.68199028,0.00054794,120]
[314328098,1708185048561,-500.0,0.00054794,120]
[314328099,1708185048571,-500.0,0.00054794,120]
[314328100,1708185048581,-500.0,0.00054794,120]
[314328101,1708185048591,-500.0,0.00054794,120]
[314328102,1708185048600,-500.0,0.00054794,120]
[314328103,1708185048610,-500.0,0.00054794,120]
[314328104,1708185048620,-500.0,0.00054794,120]
[314328105,1708185048630,-500.0,0.00054794,120]
[314328106,1708185048639,-500.0,0.00054794,120]
[314328107,1708185048649,-500.0,0.00054794,7]
[314328108,1708185048658,-3127.9,0.00054794,120]
[314328109,1708185048668,-500.0,0.00054794,120]
[314328110,1708185048678,-560.53775813,0.00054794,120]
[314328111,1708185048687,-500.0,0.00054794,120]
[314328112,1708185048699,-500.0,0.00054794,120]
[314328113,1708185048713,-550.97264739,0.00054794,120]
[314328114,1708185048724,-500.0,0.00054794,120]
[314328115,1708185048734,-500.0,0.00054794,120]
[314328116,1708185048743,-500.0,0.00054794,120]
[314328117,1708185048753,-559.60669253,0.00054794,120]
[314328118,1708185048764,-500.0,0.00054794,120]
[314328119,1708185048774,-509.83242708,0.00054794,120]
[314328120,1708185048785,-500.0,0.00054794,120]
[314328121,1708185048795,-500.0,0.00054794,120]
[314328122,1708185048805,-500.0,0.00054794,2]
[314328123,1708185048815,-500.0,0.00054794,120]
[314328124,1708185048825,-500.0,0.00054794,120]
[314328125,1708185048834,-1157.79,0.00054794,120]
[314328126,1708185048844,-500.0,0.00054794,120]
[314328127,1708185048854,-500.0,0.00054794,120]
[314328128,1708185048863,-500.0,0.00054794,120]
[314328129,1708185048874,-575.31813835,0.00054794,120]
[314328130,1708185048884,-560.74,0.00054794,120]
[314328131,1708185048894,-500.0,0.00054794,120]
[314328132,1708185048904,-500.0,0.00054794,120]
[314328133,1708185048914,-500.0,0.00054794,120]
[314328134,1708185048924,-229.83610695,0.00054794,120]
[314328135,1708185048934,-593.26721663,0.00054794,120]
[314328136,1708185048944,-494.77414686,0.00054794,120]
[314328137,1708185048954,-500.0,0.00054794,120]
[314328138,1708185048966,-509.11628563,0.00054794,120]
[314328139,1708185048977,-500.0,0.00054794,120]
[314328140,1708185048988,-500.0,0.00054794,120]
[314328141,1708185048998,-3559.36,0.00054794,120]
[314328142,1708185049008,-312.20773967,0.00054794,120]
[314328143,1708185049018,-500.0,0.00054794,120]
[314328144,1708185049028,-500.0,0.00054794,120]
[314328145,1708185049038,-500.0,0.00054794,120]
[314328146,1708185049048,-500.0,0.00054794,120]
[314328147,1708185049058,-500.0,0.00054794,120]
[314328148,1708185049068,-500.0,0.00054794,120]
[314328149,1708185049078,-500.0,0.00054794,120]
[314328150,1708185049088,-500.0,0.00054794,120]
[314328151,1708185049099,-500.0,0.00054794,120]
[314328152,1708185049109,-500.0,0.00054794,120]
[314328153,1708185049118,-500.0,0.00054794,120]
[314328154,1708185049128,-422.79103766,0.00054794,120]
[314328155,1708185049138,-500.0,0.00054794,120]
[314328156,1708185049148,-524.1151831,0.00054794,120]
[314328157,1708185049158,-500.0,0.00054794,120]
[314328158,1708185049168,-500.0,0.00054794,120]
[314328159,1708185049178,-500.0,0.00054794,120]
[314328160,1708185049189,-788.44,0.00054794,120]
[314328161,1708185049199,-517.69882726,0.00054794,120]
[314328162,1708185049208,-534.69231567,0.00054794,120]
[314328163,1708185049219,-500.0,0.00054794,120]
[314328164,1708185049229,-555.39074036,0.00054794,120]
[314328165,1708185049239,-500.0,0.00054794,14]
[314328166,1708185049410,-500.0,0.00054794,120]
[314328167,1708185049442,-500.0,0.00054794,120]
[314328168,1708185049451,-500.0,0.00054794,120]
[314328169,1708185049461,-500.0,0.00054794,120]
[314328170,1708185049471,-500.0,0.00054794,120]
[314328171,1708185049480,-590.34257876,0.00054794,120]
[314328172,1708185049490,-500.0,0.00054794,120]
[314328173,1708185049499,-500.0,0.00054794,120]
[314328174,1708185049508,-500.0,0.00054794,120]
[314328175,1708185049519,-500.0,0.00054794,120]
[314328176,1708185049528,-500.0,0.00054794,120]
[314328177,1708185049538,-518.5680107,0.00054794,120]
[314328178,1708185049547,-500.0,0.00054794,120]
[314328179,1708185049556,-500.0,0.00054794,120]
[314328180,1708185049565,-500.0,0.00054794,120]
[314328181,1708185049574,-500.0,0.00054794,120]
[314328182,1708185049584,-262.16338056,0.00054794,120]
[314328183,1708185049595,-176.71156356,0.00054794,120]
[314328184,1708185049605,-532.02999864,0.00054794,120]
[314328185,1708185049617,-500.0,0.00054794,120]
[314328186,1708185049627,-500.0,0.00054794,120]
[314328187,1708185049636,-543.52,0.00054794,120]
[314328188,1708185049646,-500.0,0.00054794,120]
[314328189,1708185049655,-500.0,0.00054794,120]
[314328190,1708185049664,-500.0,0.00054794,120]
[314328191,1708185049673,-500.0,0.00054794,120]
[314328192,1708185049683,-500.0,0.00054794,120]
[314328193,1708185049693,-600.56,0.00054794,120]
[314328194,1708185049704,-500.0,0.00054794,120]
[314328195,1708185049714,-500.0,0.00054794,120]
[314328196,1708185049723,-520.9361519,0.00054794,120]
[314328197,1708185049732,-500.0,0.00054794,120]
[314328198,1708185049742,-500.0,0.00054794,120]
[314328199,1708185049752,-557.08115132,0.00054794,120]
[314328200,1708185049762,-500.0,0.00054794,120]
[314328201,1708185049772,-363.31565,0.00054794,30]
[314328202,1708185049782,-500.0,0.00054794,120]
[314328203,1708185049791,-500.0,0.00054794,120]
[314328204,1708185049801,-500.0,0.00054794,120]
[314328205,1708185049812,-500.0,0.00054794,120]
[314328206,1708185049822,-500.5541525,0.00054794,120]
[314328207,1708185049831,-500.0,0.00054794,120]
[314328208,1708185049840,-500.0,0.00054794,120]
[314328209,1708185049849,-500.0,0.00054794,120]
[314328210,1708185049858,-500.0,0.00054794,120]
[314328211,1708185049868,-511.57632754,0.00054794,120]
[314328212,1708185049877,-523.02,0.00054794,120]
[314328213,1708185049886,-649.16,0.00054794,120]
[314328214,1708185049896,-500.0,0.00054794,120]
[314328215,1708185049906,-528.6689076,0.00054794,30]
[314328216,1708185049915,-572.06826694,0.00054794,120]
[314328217,1708185049924,-512.23625365,0.00054794,120]
[314328218,1708185049933,-500.0,0.00054794,120]
[314328219,1708185049942,-507.02667019,0.00054794,10]
[314328220,1708185049952,-500.0,0.00054794,120]
[314328221,1708185049961,-1738.5,0.00054794,120]
[314328222,1708185049970,-500.0,0.00054794,120]
[314328223,1708185049979,-333.38474123,0.00054794,120]
[314328224,1708185049988,-521.47193829,0.00054794,120]
[314328225,1708185049998,-1023.65,0.00054794,120]
[314328226,1708185050007,-500.0,0.00054794,120]
[314328227,1708185050017,-500.0,0.00054794,120]
[314328228,1708185050026,-609.9,0.00054794,120]
[314328229,1708185050036,-500.0,0.00054794,120]
[314328230,1708185050046,-500.0,0.00054794,120]
[314328231,1708185050055,-500.0,0.00054794,120]
[314328232,1708185050065,-527.15195277,0.00054794,120]
[314328233,1708185050074,-500.0,0.00054794,120]
[314328234,1708185050084,-531.82736055,0.00054794,120]
[314328235,1708185050093,-500.0,0.00054794,120]
[314328236,1708185050103,-500.0,0.00054794,120]
[314328237,1708185050112,-494.25516634,0.00054794,120]
[314328238,1708185050122,-500.0,0.00054794,120]
[314328239,1708185050132,-396.06238765,0.00054794,30]
[314328240,1708185050142,-500.0,0.00054794,120]
[314328241,1708185050151,-500.0,0.00054794,120]
[314328242,1708185050161,-518.00403318,0.00054794,120]
[314328243,1708185050171,-500.0,0.00054794,120]
[314328244,1708185050180,-500.0,0.00054794,120]
[314328245,1708185050190,-1790.0,0.00054794,120]
[314328246,1708185050199,-642.82248556,0.00054794,120]
[314328247,1708185050209,-500.0,0.00054794,120]
[314328248,1708185050218,-523.81145639,0.00054794,120]
[314328249,1708185050228,-578.31940821,0.00054794,120]
[314328250,1708185050240,-500.0,0.00054794,120]
[314328251,1708185050250,-542.03465063,0.00054794,120]
[314328252,1708185050259,-500.0,0.00054794,120]
[314328253,1708185050269,-500.0,0.00054794,120]
[314328254,1708185050278,-500.0,0.00054794,120]
[314328255,1708185050289,-661.2,0.00054794,120]
[314328256,1708185050299,-532.84280241,0.00054794,120]
[314328257,1708185050309,-500.0,0.00054794,120]
[314328258,1708185050318,-500.0,0.00054794,120]
[314328259,1708185050327,-525.21521394,0.00054794,120]
[314328260,1708185050337,-519.89121865,0.00054794,120]
[314328261,1708185050347,-541.47190062,0.00054794,120]
[314328262,1708185050356,-526.92248804,0.00054794,120]
[314328263,1708185050366,-500.0,0.00054794,120]
[314328264,1708185050375,-518.77967325,0.00054794,120]
[314328265,1708185050384,-464.64071643,0.00054794,2]
[314328266,1708185050393,-521.28595627,0.00054794,120]
[314328267,1708185050402,-500.0,0.00054794,120]
[314328268,1708185050411,-501.63413972,0.00054794,2]
[314328269,1708185050421,-14381.06,0.00054794,120]
[314328270,1708185050430,-500.0,0.00054794,120]
[314328271,1708185050439,-500.0,0.00054794,120]
[314328272,1708185050448,-500.0,0.00054794,120]
[314328273,1708185050458,-500.0,0.00054794,120]
[314328274,1708185050467,-500.0,0.00054794,120]
[314328275,1708185050476,-513.28422818,0.00054794,120]
[314328276,1708185050485,-500.0,0.00054794,120]
[314328277,1708185050495,-531.88942042,0.00054794,120]
[314328278,1708185050504,-424.17174472,0.00054794,120]
[314328279,1708185050513,-521.57539472,0.00054794,120]
[314328280,1708185050522,-500.0,0.00054794,120]
[314328281,1708185050532,-500.0,0.00054794,120]
[314328282,1708185050541,-500.0,0.00054794,2]
[314328283,1708185050550,-515.86832877,0.00054794,120]
[314328284,1708185050559,-500.0,0.00054794,120]
[314328285,1708185050568,-5313.91,0.00054794,120]
[314328286,1708185050578,-502.94986568,0.00054794,120]
[314328287,1708185050587,-500.0,0.00054794,120]
[314328288,1708185050596,-488.83146558,0.00054794,120]
[314328289,1708185050605,-500.0,0.00054794,120]
[314328290,1708185050614,-500.0,0.00054794,2]
[314328291,1708185050623,-500.0,0.00054794,2]
[314328292,1708185050633,-500.0,0.00054794,2]
[314328293,1708185050642,-500.0,0.00054794,2]
[314328294,1708185050651,-500.0,0.00054794,120]
[314328295,1708185050661,-500.0,0.00054794,120]
[314328296,1708185050670,-344.09418387,0.00054794,120]
[314328297,1708185050680,-509.19477868,0.00054794,120]
[314328298,1708185050689,-500.0,0.00054794,120]
[314328299,1708185050698,-500.0,0.00054794,120]
[314328300,1708185050712,-562.60528418,0.00054794,120]
[314328301,1708185050721,-296.90117551,0.00054794,120]
[314328302,1708185050731,-507.37872426,0.00054794,120]
[314328303,1708185050741,-200.0,0.00054795,120]
[314328304,1708185050750,-200.0,0.00054795,30]
[314328305,1708185050759,-2400.0,0.00054795,30]
[314328306,1708185050769,-161.03,0.00054795,30]
[314328307,1708185050778,-500.0,0.00054795,120]
[314328308,1708185050788,-5000.0,0.000548,120]
[314328309,1708185050798,-3499.999999,0.000548,120]
[314328310,1708185050807,-200.0,0.000548,30]
[314328311,1708185050816,-2774.0,0.000548,120]
[314328312,1708185050826,-754.0,0.000548,120]
[314328313,1708185050835,-7693.28214187,0.000548,120]
[314328314,1708185050844,-2000.0,0.000548,30]
[314328315,1708185050853,-501.99888765,0.000548,30]
[314328316,1708185050863,-200.0,0.00054872,120]
[314328317,1708185050872,-152.0,0.00054899,120]
[314328318,1708185050881,-666.0,0.00054989,7]
[314328319,1708185050890,-2432.95365588,0.00054989,2]
[314328320,1708185050900,-753.23,0.00055,120]
[314328321,1708185050910,-2009.62,0.00055,120]
[314328322,1708185050919,-1230.06,0.00055,120]
[314328323,1708185050929,-165.0,0.00055,120]
[314328324,1708185050938,-165.0,0.00055,120]
[314328325,1708185050947,-160.0,0.00055,120]
[314328326,1708185050957,-150.0,0.00055,120]
[314328327,1708185050966,-165.0,0.00055,120]
[314328328,1708185050975,-492.0,0.00055,60]
[314328329,1708185050984,-13808.17400636,0.00055,92]
[314328330,1708185050994,-1026.15532951,0.00055,92]
[314328331,1708185051004,-4997.8,0.00055,2]
[314328332,1708185051015,-21080.8674365,0.00055,17]
[314328333,1708185051025,-160.5505858,0.00055016,32]
[314328334,1708185051034,-1526.67165904,0.00055062,30]
[314328335,1708185051044,-424.17522986,0.00055062,30]
[314328336,1708185051053,-155.36075221,0.00055068,2]
[314328337,1708185051063,-500.0,0.00055068,2]
[314328338,1708185051072,-500.0,0.00055068,120]
[314328339,1708185051082,-631.44,0.00055068,2]
[314328340,1708185051092,-537.5023735,0.00055068,120]
[314328341,1708185051101,-500.0,0.00055068,120]
[314328342,1708185051110,-518.19540518,0.00055068,120]
[314328343,1708185051120,-570.00002319,0.00055068,120]
[314328344,1708185051129,-537.0052158,0.00055068,120]
[314328345,1708185051139,-579.3294309,0.00055068,120]
[314328346,1708185051149,-500.0,0.00055068,120]
[314328347,1708185051158,-500.0,0.00055068,120]
[314328348,1708185051168,-500.0,0.00055068,120]
[314328349,1708185051178,-519.69891865,0.00055068,7]
[314328350,1708185051187,-529.84012815,0.00055068,120]
[314328351,1708185051197,-560.63155054,0.00055068,120]
[314328352,1708185051206,-536.61838355,0.00055068,120]
[314328353,1708185051215,-194.55247385,0.00055068,120]
[314328354,1708185051225,-500.0,0.00055068,120]
[314328355,1708185051235,-500.0,0.00055068,120]
[314328356,1708185051244,-450.24619988,0.00055068,120]
[314328357,1708185051253,-543.48065571,0.00055068,120]
[314328358,1708185051263,-511.99391969,0.00055068,120]
[314328359,1708185051272,-500.0,0.00055068,120]
[314328360,1708185051282,-500.0,0.00055068,120]
[314328361,1708185051292,-500.0,0.00055068,120]
[314328362,1708185051301,-539.67913996,0.00055068,120]
[314328363,1708185051310,-500.0,0.00055068,120]
[314328364,1708185051320,-602.78241618,0.00055068,120]
[314328365,1708185051329,-500.0,0.00055068,120]
[314328366,1708185051338,-500.0,0.00055068,120]
[314328367,1708185051348,-552.80298346,0.00055068,120]
[314328368,1708185051357,-311.40279987,0.00055068,120]
[314328369,1708185051366,-541.85888393,0.00055068,120]
[314328370,1708185051375,-500.0,0.00055068,120]
[314328371,1708185051384,-526.06285506,0.00055068,120]
[314328372,1708185051393,-500.0,0.00055068,120]
[314328373,1708185051402,-500.0,0.00055068,120]
[314328374,1708185051411,-500.0,0.00055068,2]
[314328375,1708185051420,-500.0,0.00055068,120]
[314328376,1708185051430,-500.0,0.00055068,120]
[314328377,1708185051439,-500.0,0.00055068,120]
[314328378,1708185051448,-500.0,0.00055068,120]
[314328379,1708185051458,-500.0,0.00055068,2]
[314328380,1708185051470,-297.25573391,0.00055068,120]
[314328381,1708185051514,-308.59535877,0.00055068,120]
[314328382,1708185051523,-500.0,0.00055068,120]
[314328383,1708185051533,-500.0,0.00055068,120]
[314328384,1708185051543,-500.0,0.00055068,120]
[314328385,1708185051552,-500.0,0.00055068,120]
[314328386,1708185051561,-500.0,0.00055068,120]
[314328387,1708185051571,-550.37091966,0.00055068,120]
[314328388,1708185051580,-500.0,0.00055068,120]
[314328389,1708185051590,-712.65,0.00055068,7]
[314328390,1708185051599,-500.0,0.00055068,120]
[314328391,1708185051608,-500.0,0.00055068,120]
[314328392,1708185051618,-500.0,0.00055068,120]
[314328393,1708185051627,-500.0,0.00055068,2]
[314328394,1708185051636,-500.0,0.00055068,120]
[314328395,1708185051646,-500.0,0.00055068,120]
[314328396,1708185051655,-500.0,0.00055068,120]
[314328397,1708185051664,-500.0,0.00055068,120]
[314328398,1708185051673,-500.0,0.00055068,120]
[314328399,1708185051682,-500.0,0.00055068,120]
[314328400,1708185051692,-500.0,0.00055068,120]
[314328401,1708185051704,-230.20412456,0.00055068,120]
[314328402,1708185051713,-555.49827714,0.00055068,120]
[314328403,1708185051763,-500.0,0.00055068,120]
[314328404,1708185051772,-546.24327557,0.00055068,120]
[314328405,1708185051783,-726.06,0.00055068,120]
[314328406,1708185051792,-500.0,0.00055068,120]
[314328407,1708185051801,-543.65870553,0.00055068,120]
[314328408,1708185051810,-1000.0,0.00055068,7]
[314328409,1708185051819,-624.32200642,0.00055068,120]
[314328410,1708185051828,-500.0,0.00055068,120]
[314328411,1708185051837,-500.0,0.00055068,120]
[314328412,1708185051846,-500.0,0.00055068,120]
[314328413,1708185051855,-500.0,0.00055068,120]
[314328414,1708185051864,-500.0,0.00055068,120]
[314328415,1708185051873,-500.0,0.00055068,120]
[314328416,1708185051882,-428.15121461,0.00055068,120]
[314328417,1708185051891,-500.0,0.00055068,120]
[314328418,1708185051901,-500.0,0.00055068,120]
[314328419,1708185051910,-500.0,0.00055068,120]
[314328420,1708185051919,-500.0,0.00055068,120]
[314328421,1708185051928,-593.63218861,0.00055068,120]
[314328422,1708185051937,-500.0,0.00055068,120]
[314328423,1708185051946,-500.0,0.00055068,120]
[314328424,1708185051955,-500.0,0.00055068,120]
[314328425,1708185051964,-501.21987151,0.00055068,30]
[314328426,1708185051973,-391.01375888,0.00055068,120]
[314328427,1708185051982,-500.0,0.00055068,120]
[314328428,1708185051992,-500.0,0.00055068,120]
[314328429,1708185052001,-500.0,0.00055068,120]
[314328430,1708185052010,-500.0,0.00055068,120]
[314328431,1708185052020,-1000.0,0.00055068,7]
[314328432,1708185052029,-500.0,0.00055068,120]
[314328433,1708185052038,-500.0,0.00055068,120]
[314328434,1708185052047,-500.0,0.00055068,120]
[314328435,1708185052057,-500.0,0.00055068,120]
[314328436,1708185052066,-500.0,0.00055068,120]
[314328437,1708185052075,-500.0,0.00055068,120]
[314328438,1708185052084,-500.0,0.00055068,120]
[314328439,1708185052093,-500.0,0.00055068,120]
[314328440,1708185052103,-500.0,0.00055068,120]
[314328441,1708185052112,-500.0,0.00055068,120]
[314328442,1708185052121,-500.0,0.00055068,120]
[314328443,1708185052131,-599.51116155,0.00055068,120]
[314328444,1708185052140,-313.49798344,0.00055068,120]
[314328445,1708185052149,-500.0,0.00055068,120]
[314328446,1708185052158,-501.61823488,0.00055068,120]
[314328447,1708185052168,-531.10718226,0.00055068,120]
[314328448,1708185052177,-500.0,0.00055068,120]
[314328449,1708185052186,-150.0,0.00055068,120]
[314328450,1708185052195,-500.0,0.00055068,120]
[314328451,1708185052205,-500.0,0.00055068,30]
[314328452,1708185052214,-500.0,0.00055068,120]
[314328453,1708185052224,-500.0,0.00055068,2]
[314328454,1708185052233,-500.0,0.00055068,120]
[314328455,1708185052242,-500.0,0.00055068,120]
[314328456,1708185052252,-554.58171665,0.00055068,120]
[314328457,1708185052261,-500.0,0.00055068,2]
[314328458,1708185052270,-500.0,0.00055068,120]
[314328459,1708185052279,-1000.0,0.00055068,120]
[314328460,1708185052289,-500.0,0.00055068,120]
[314328461,1708185052298,-500.0,0.00055068,120]
[314328462,1708185052307,-526.781292,0.00055068,120]
[314328463,1708185052316,-500.0,0.00055068,120]
[314328464,1708185052325,-500.0,0.00055068,120]
[314328465,1708185052334,-500.0,0.00055068,120]
[314328466,1708185052343,-500.0,0.00055068,120]
[314328467,1708185052352,-500.0,0.00055068,120]
[314328468,1708185052362,-520.3122894,0.00055068,120]
[314328469,1708185052371,-500.0,0.00055068,120]
[314328470,1708185052380,-500.0,0.00055068,120]
[314328471,1708185052389,-500.0,0.00055068,120]
[314328472,1708185052398,-500.0,0.00055068,120]
[314328473,1708185052407,-563.35992792,0.00055068,120]
[314328474,1708185052417,-500.0,0.00055068,120]
[314328475,1708185052426,-500.0,0.00055068,120]
[314328476,1708185052434,-500.0,0.00055068,120]
[314328477,1708185052443,-500.0,0.00055068,120]
[314328478,1708185052453,-500.0,0.00055068,120]
[314328479,1708185052462,-500.0,0.00055068,120]
[314328480,1708185052470,-508.38441291,0.00055068,120]
[314328481,1708185052479,-553.06947301,0.00055068,120]
[314328482,1708185052488,-1250.97,0.00055068,120]
[314328483,1708185052497,-227.33699963,0.00055068,120]
[314328484,1708185052506,-500.0,0.00055068,120]
[314328485,1708185052515,-500.0,0.00055068,120]
[314328486,1708185052524,-500.0,0.00055068,120]
[314328487,1708185052533,-590.05569813,0.00055068,120]
[314328488,1708185052543,-347.17142224,0.00055068,120]
[314328489,1708185052552,-500.0,0.00055068,120]
[314328490,1708185052561,-500.0,0.00055068,2]
[314328491,1708185052570,-500.0,0.00055068,120]
[314328492,1708185052579,-558.07570171,0.00055068,120]
[314328493,1708185052588,-500.0,0.00055068,120]
[314328494,1708185052597,-580.82076152,0.00055068,120]
[314328495,1708185052607,-500.0,0.00055068,120]
[314328496,1708185052616,-500.0,0.00055068,120]
[314328497,1708185052624,-500.0,0.00055068,120]
[314328498,1708185052633,-500.0,0.00055068,120]
[314328499,1708185052642,-500.0,0.00055068,120]
[314328500,1708185052651,-532.99110301,0.00055068,120]
[314328501,1708185052660,-632.43,0.00055068,120]
[314328502,1708185052669,-573.10986952,0.00055068,120]
[314328503,1708185052678,-500.0,0.00055068,120]
[314328504,1708185052687,-555.69911253,0.00055068,120]
[314328505,1708185052696,-500.0,0.00055068,120]
[314328506,1708185052710,-500.0,0.00055068,120]
[314328507,1708185052719,-500.0,0.00055068,120]
[314328508,1708185052728,-500.0,0.00055068,120]
[314328509,1708185052737,-500.0,0.00055068,120]
[314328510,1708185052746,-503.48986001,0.00055068,120]
[314328511,1708185052755,-500.0,0.00055068,120]
[314328512,1708185052765,-500.0,0.00055068,120]
[314328513,1708185052774,-234.78,0.00055068,120]
[314328514,1708185052783,-500.0,0.00055068,120]
[314328515,1708185052794,-3456.26,0.00055068,120]
[314328516,1708185052803,-500.0,0.00055068,120]
[314328517,1708185052812,-524.56234278,0.00055068,120]
[314328518,1708185052821,-448.37231896,0.00055068,120]
[314328519,1708185052830,-500.0,0.00055068,120]
[314328520,1708185052839,-500.0,0.00055068,120]
[314328521,1708185052848,-500.0,0.00055068,120]
[314328522,1708185052857,-3914.34,0.00055068,120]
[314328523,1708185052866,-418.58613621,0.00055068,120]
[314328524,1708185052875,-500.0,0.00055068,120]
[314328525,1708185052884,-527.55136183,0.00055068,120]
[314328526,1708185052894,-588.74147136,0.00055068,14]
[314328527,1708185052903,-500.0,0.00055068,120]
[314328528,1708185052911,-500.0,0.00055068,120]
[314328529,1708185052920,-500.0,0.00055068,120]
[314328530,1708185052929,-500.0,0.00055068,120]
[314328531,1708185052938,-500.0,0.00055068,120]
[314328532,1708185052947,-500.0,0.00055068,120]
[314328533,1708185052956,-500.0,0.00055068,120]
[314328534,1708185052965,-500.0,0.00055068,120]
[314328535,1708185052974,-500.0,0.00055068,120]
[314328536,1708185052983,-500.0,0.00055068,120]
[314328537,1708185052993,-500.0,0.00055068,120]
[314328538,1708185053002,-392.36,0.00055068,120]
[314328539,1708185053011,-500.0,0.00055068,120]
[314328540,1708185053021,-500.0,0.00055068,120]
[314328541,1708185053030,-500.0,0.00055068,120]
[314328542,1708185053040,-500.0,0.00055068,120]
[314328543,1708185053049,-500.0,0.00055068,120]
[314328544,1708185053058,-500.0,0.00055068,120]
[314328545,1708185053067,-500.0,0.00055068,120]
[314328546,1708185053078,-500.0,0.00055068,120]
[314328547,1708185053087,-325.65756155,0.00055068,120]
[314328548,1708185053097,-500.0,0.00055068,120]
[314328549,1708185053106,-500.0,0.00055068,120]
[314328550,1708185053115,-646.15,0.00055068,120]
[314328551,1708185053125,-500.0,0.00055068,120]
[314328552,1708185053134,-500.0,0.00055068,120]
[314328553,1708185053143,-500.0,0.00055068,120]
[314328554,1708185053152,-500.0,0.00055068,120]
[314328555,1708185053162,-500.0,0.00055068,120]
[314328556,1708185053171,-500.0,0.00055068,120]
[314328557,1708185053180,-500.0,0.00055068,120]
[314328558,1708185053189,-500.0,0.00055068,120]
[314328559,1708185053199,-500.0,0.00055068,120]
[314328560,1708185053208,-540.99237337,0.00055068,120]
[314328561,1708185053217,-251.41345396,0.00055068,120]
[314328562,1708185053227,-500.0,0.00055068,120]
[314328563,1708185053236,-500.0,0.00055068,120]
[314328564,1708185053246,-698.16,0.00055068,120]
[314328565,1708185053255,-339.23976603,0.00055068,120]
[314328566,1708185053264,-500.0,0.00055068,120]
[314328567,1708185053274,-500.0,0.00055068,120]
[314328568,1708185053283,-554.40912725,0.00055068,120]
[314328569,1708185053294,-500.0,0.00055068,120]
[314328570,1708185053303,-500.0,0.00055068,120]
[314328571,1708185053312,-500.0,0.00055068,120]
[314328572,1708185053321,-500.0,0.00055068,120]
[314328573,1708185053330,-500.0,0.00055068,120]
[314328574,1708185053339,-338.81638599,0.00055068,120]
[314328575,1708185053348,-300.0,0.00055068,120]
[314328576,1708185053356,-500.0,0.00055068,120]
[314328577,1708185053366,-259.32527381,0.00055068,120]
[314328578,1708185053375,-500.0,0.00055068,120]
[314328579,1708185053384,-500.0,0.00055068,120]
[314328580,1708185053393,-500.0,0.00055068,120]
[314328581,1708185053402,-500.0,0.00055068,120]
[314328582,1708185053411,-500.0,0.00055068,120]
[314328583,1708185053420,-535.20010004,0.00055068,120]
[314328584,1708185053429,-500.0,0.00055068,7]
[314328585,1708185053438,-500.0,0.00055068,120]
[314328586,1708185053448,-163.83865412,0.00055068,120]
[314328587,1708185053456,-500.0,0.00055068,120]